Cogmind - Beta 16 @@@ ROGUE MODE // 2026.02.08 @ 06:53:59 Player: shapeshifter Result: Destroyed by G-67 Veteran with Plasma Rifle Performance ------------- Evolutions (6) 3000 Regions Visited (8) 1600 Robots Destroyed (105) 525 Value Destroyed (4245) 4245 Prototype IDs (34) 680 Alien Tech Used (0) 0 Bonus (3539) 3539 TOTAL SCORE: 13589 Bonus ------- High Alert Combat Kills 739 Delivered SUBCON Basin 2000 Registered with UFD 300 Met Optimus in HQ 500 Cogmind --------- Core Integrity 0/1150 Matter 13/800 Energy 63/100 System Corruption 1% Temperature Cool (0) Movement Flying (35) Location -4/Factory Parts ------- > --- POWER (2) -------- (None) > --- PROPULSION (6) --- Cooled Impulse Thruster > --- UTILITY (9) ------ Experimental Matter Compressor Enhanced Optical Array Experimental Terrain Scan Processor Hacking Suite Tech Extrapolator > --- WEAPON (2) ------- (None) > --- INVENTORY (5) ---- Coolant Network Hardened Medium Armor Plating Advanced Shield Generator PL-3XN's Ring of Power Peak State ------------ > --- POWER ------------ Micro Fission Core Micro Fission Core > --- PROPULSION ------- Centrium Heavy Treads Enhanced Armored Heavy Treads Armored Leg > --- UTILITY ---------- High-capacity Storage Unit Experimental Terrain Scan Processor Improved Target Analyzer Hacking Suite Hacking Suite Improved System Shield Advanced System Shield Tech Extrapolator > --- WEAPON ----------- Matter Neutralizer Improved Matter Neutralizer > --- INVENTORY -------- Armored Leg Armored Leg Armored Leg Cooled Impulse Thruster Coolant Network Experimental Matter Compressor Advanced Terrain Scanner Weapon Cycler Stasis Canceller Improved Trap Extractor Proton Cannon Ion Burst Cannon Precision Grenade Launcher Advanced Micro-nuke Launcher Plasma Cutter CPS Tube CPS Tube DRS Beacon PL-3XN's Ring of Power [Rating: 119] Favorites ----------- Power Reinforced Ion Engine Engine Reinforced Ion Engine Power Core Micro Fission Core Reactor Light Antimatter Reactor Propulsion Advanced Treads Treads Advanced Treads Leg Armored Leg Wheel Subdweller Monowheel Flight Unit Cooled Impulse Thruster Utility High-capacity Storage Unit Device Advanced Heat Sink Storage High-capacity Storage Unit Processor Tech Extrapolator Hackware Hacking Suite Protection Layered Medium Armor Plating Weapon Heavy Assault Rifle Energy Gun Heavy Gatling Laser Energy Cannon Ion Burst Cannon Ballistic Gun Heavy Assault Rifle Launcher Advanced Micro-nuke Launcher Build | -11 -10 -10 -10 -8 -8 -6 -5 -4 ------- Run | Yrd Mat Min Sub Rec Scr Fac Fac Fac Slots Evolved 12 | . . . . . . 8 2 2 Power 1 | . . . . . . 1 . . Propulsion 4 | . . . . . . 2 1 1 Utility 7 | . . . . . . 5 1 1 Weapon . | . . . . . . . . . Parts Attached 107 | 7 5 . 9 . 14 17 46 9 Power 15 | 1 1 . 1 . 3 2 6 1 Engine 9 | 1 1 . 1 . 2 2 2 . Core 4 | . . . . . 1 . 3 . Reactor 2 | . . . . . . . 1 1 Propulsion 33 | 2 . . 6 . 5 4 13 3 Treads 13 | 2 . . . . 3 4 4 . Leg 11 | . . . . . . . 9 2 Wheel 8 | . . . 6 . 2 . . . Hover . | . . . . . . . . . Flight 1 | . . . . . . . . 1 Utility 38 | 2 2 . 1 . 4 8 18 3 Device 12 | 1 . . . . . 4 7 . Storage 6 | 1 1 . 1 . 1 . 1 1 Processor 5 | . . . . . 1 . 3 1 Hackware 6 | . . . . . . 3 2 1 Protection 9 | . 1 . . . 2 1 5 . Artifact . | . . . . . . . . . Weapon 21 | 2 2 . 1 . 2 3 9 2 Energy Gun 1 | . . . . . . . 1 . Energy Cannon 4 | . . . . . . . 3 1 Ballistic Gun 14 | 2 2 . 1 . 2 2 4 1 Ballistic Cannon . | . . . . . . . . . Launcher 2 | . . . . . . 1 1 . Special Weapon . | . . . . . . . . . Impact Weapon . | . . . . . . . . . Slashing Weapon . | . . . . . . . . . Piercing Weapon . | . . . . . . . . . Special Melee Weapon . | . . . . . . . . . Unidentified Prototypes 10 | . . . . . . 2 6 2 Corrupted Parts 1 | . . . . . . . . 1 System Corruption 1 | . . . . . . . . 1 Parts Lost 48 | . . . 4 . . 3 25 16 Power 8 | . . . 1 . . . 5 2 Propulsion 14 | . . . 2 . . 1 6 5 Utility 15 | . . . . . . 2 10 3 Weapon 11 | . . . 1 . . . 4 6 Highest Loss Streak 14 | . . . 4 . . 3 11 14 To Critical Strikes 1 | . . . 1 . . . . . Average Backups 15 | 3 7 8 16 19 16 15 16 15 Power 1 | . 1 2 2 2 . . . . Propulsion 1 | 1 1 . . 1 2 1 1 1 Utility 6 | . 2 3 5 6 8 6 7 7 Weapon 4 | . 2 3 7 10 3 2 3 3 Tool/Special . | . . . . . . . . . Unused Backups 49 | . 7 . . 3 17 3 9 10 Power 2 | . 1 . . . 1 . . . Propulsion 5 | . 2 . . 1 . . 2 . Utility 20 | . 3 . . . 5 2 3 7 Weapon 18 | . 1 . . 2 11 1 3 . Tool/Special 4 | . . . . . . . 1 3 Average Slot Usage (%) 89 | . 100 100 82 85 97 91 86 60 Engine 10 | . 14 14 13 14 13 . 5 . Core 1 | . . . . . . 5 3 2 Treads 13 | . 28 28 4 . 18 25 12 . Leg 1 | . . . . . . . 7 12 Wheel 8 | . . . 18 28 9 . . . Device 2 | . 7 . . . . 5 7 4 Storage 11 | . 14 14 14 14 14 6 5 5 Processor 4 | . . . . . 4 6 10 14 Hackware 4 | . . . . . . 11 13 13 Protection 5 | . 6 14 2 . 7 12 3 . Ballistic Gun 21 | . 28 28 27 28 27 13 7 . Peak Build Rating 119 | 8 12 12 34 34 29 70 119 78 Average Rating 41 | 4 9 12 25 33 24 61 87 67 On Entrance 27 | . 8 12 12 34 17 28 70 64 Avg Prop Armor Cover (%) 7 | . . . 3 3 10 . 10 9 Naked Turns . | . . . . . . . . . Heaviest Build 217 | 15 41 41 217 217 217 104 83 61 Greatest Support 160 | 40 40 40 40 40 50 98 160 40 Greatest Overweight (x) 72 | . 1 1 72 10 10 1 1 15 Average Overweight (x) 2 | . . 1 8 6 1 . . 1 Largest Inventory Capacity 35 | 8 15 15 35 35 35 20 20 20 Average Capacity 22 | 7 10 15 31 35 20 20 20 19 Most Carried 35 | 7 8 8 35 35 21 20 20 20 Average Carried 19 | 3 7 8 25 33 16 19 19 18 Final Capacity 35 | 8 15 15 35 35 20 20 20 5 Final Carried 34 | 6 8 8 34 21 20 18 18 5 Class Distribution -------------------- 37% | Mutant 29% | Hacker-Mutant 29% | Hauler-Mutant Dominant Class ---------------- Mutant | -10/Materials Mutant | -10/Mines Hauler-Mutant | -10/Subcaves Hauler-Mutant | -8/Recycling Mutant | -8/Scraptown Hacker-Mutant | -6/Factory Hacker-Mutant | -5/Factory Hacker-Mutant | -4/Factory Resources | -11 -10 -10 -10 -8 -8 -6 -5 -4 ----------- Run | Yrd Mat Min Sub Rec Scr Fac Fac Fac Matter Collected 3406 | 289 211 6 257 . 160 526 1847 110 Remotely . | . . . . . . . . . Salvage Created 4550 | 110 276 28 327 . . 647 2978 184 Parts 222 | 7 11 1 16 . . 27 147 13 Haulers Intercepted 1 | . . . . . . 1 . . Recyclers Shooed 5 | . . . . . . . 5 . Parts Field Recycled . | . . . . . . . . . Retrieved Matter . | . . . . . . . . . Parts Self-Destructed 9 | . . . 9 . . . . . Prevented . | . . . . . . . . . Parts Restored . | . . . . . . . . . Kills | -11 -10 -10 -10 -8 -8 -6 -5 -4 ------- Run | Yrd Mat Min Sub Rec Scr Fac Fac Fac Combat Hostiles Destroyed 73 | . 4 . 9 . . 7 50 3 Melee 1 | . . . . . . . 1 . Guns 50 | . 4 . 9 . . 7 29 1 Cannons 7 | . . . . . . . 6 1 AOE 13 | . . . . . . . 12 1 Classes Destroyed 17 | 2 1 1 3 . . 4 6 . Worker 12 | . . 1 . . . . 10 1 Builder 5 | . . . . . . . 4 1 Tunneler 2 | 2 . . . . . . . . Hauler 1 | . . . . . . 1 . . Recycler 6 | 1 1 . . . . 1 3 . Turret 2 | . . . 2 . . . . . Watcher 4 | . . . . . . 3 1 . Swarmer 4 | . . . 4 . . . . . Saboteur 1 | . . . . . . . 1 . Grunt 34 | . 4 . . . . 4 24 2 Protector 2 | . . . . . . . 2 . Sentry 5 | . . . . . . . 4 1 Specialist 6 | . . . . . . . 6 . Hunter 7 | . . . . . . 1 6 . Programmer 8 | . . . . . . 2 6 . Heavy 1 | . . . . . . . 1 . Subdweller 5 | . . . 5 . . . . . Best Kill Streak 20 | 3 2 1 6 . . 2 20 3 Combat Bots Only 17 | . 2 . 4 . . 2 17 1 Max Kills in Single Turn 3 | 1 1 1 1 . . 1 3 2 Gunslinging . | . . . . . . . . . Exploded 2 | . . . . . . . 2 1 Melee 1 | . . . . . . . 1 . Uniques/NPCs Destroyed . | . . . . . . . . . Combat | -11 -10 -10 -10 -8 -8 -6 -5 -4 -------- Run | Yrd Mat Min Sub Rec Scr Fac Fac Fac Hostile Shots Fired 874 | . 30 1 111 . . 70 485 177 Missed 233 | . 9 1 47 . . 22 108 46 Deflected 9 | . . . . . . . 9 . Hits 641 | . 21 . 64 . . 48 377 131 Projectile 641 | . 21 . 64 . . 48 377 131 Critical Strikes 31 | . 2 . 1 . . 5 17 6 Part Disruptions 2 | . . . . . . . 2 . Damage Taken 13224 | . 279 . 1066 . . 649 8343 2887 Core 2171 | . 25 . 223 . . 52 703 1168 Absorbed by Shields 195 | . . . . . . 195 . . Reduced by Siege Mode 155 | . . . . . . . 155 . Ignored by Resistances 36 | . . . . . . 36 . . Core Remaining (%) 55 | 100 . . . . . 93 29 . Volleys Fired 323 | 4 26 5 29 . . 52 177 30 Largest 2 | 2 2 2 2 . . 2 2 2 Hottest 218 | 40 46 46 53 . . 63 218 213 Shots Fired 554 | 8 52 10 58 . . 104 291 31 Gun 432 | 8 52 10 58 . . 104 191 9 Cannon 96 | . . . . . . . 77 19 Launcher 26 | . . . . . . . 23 3 Special . | . . . . . . . . . Kinetic 432 | 8 52 10 58 . . 104 191 9 Thermal 92 | . . . . . . . 77 15 Explosive 26 | . . . . . . . 23 3 Electromagnetic 4 | . . . . . . . . 4 Robot Hit Streak 17 | 3 7 1 17 . . 8 14 8 Robot Miss Streak 7 | 1 4 1 2 . . 4 7 2 Penetration Max 3 | . . . . . . . 3 . Secondary Targets 9 | . 1 . 2 . . 1 5 . Max Gunslinging Chain 1 | . 1 . 1 . . 1 1 . Shots Hit Robots 362 | 5 32 2 46 . . 66 191 20 Core Hits 236 | 4 9 1 18 . . 25 162 17 Critical Kills 36 | . 1 . . . . 2 33 . Critical Parts Destroyed 48 | . . . . . . 2 46 . Critical Strikes 87 | . 1 . . . . 4 82 . Meltdown 3 | . . . . . . . 3 . Destroy 84 | . 1 . . . . 4 79 . Melee Attacks . | . . . . . . . . . Impact . | . . . . . . . . . Slashing . | . . . . . . . . . Piercing . | . . . . . . . . . Sneak Attacks . | . . . . . . . . . Combat Hostiles . | . . . . . . . . . Follow-up Attacks . | . . . . . . . . . Damage Inflicted 11701 | 62 411 31 715 . . 1422 7850 1210 Guns 5091 | 62 411 31 715 . . 1422 2289 161 Cannons 2355 | . . . . . . . 1887 468 Explosions 4206 | . . . . . . . 3633 573 Melee . | . . . . . . . . . Ramming 49 | . . . . . . . 41 8 Kinetic 5091 | 62 411 31 715 . . 1422 2289 161 Thermal 2403 | . . . . . . . 2061 342 Explosive 4032 | . . . . . . . 3459 573 Electromagnetic 126 | . . . . . . . . 126 Impact . | . . . . . . . . . Slashing . | . . . . . . . . . Piercing . | . . . . . . . . . Highest Corruption 16 | . . . . . . 1 16 1 Average Corruption 5 | . . . . . . 1 6 1 Corruption Purged . | . . . . . . . . . Corruption Blocked . | . . . . . . . . . Effects 46 | . . . . . . 4 42 . Message Errors 11 | . . . . . . . 11 . Matter Fused 12 | . . . . . . 2 10 . Heat Flow Errors 4 | . . . . . . . 4 . Energy Discharges 4 | . . . . . . . 4 . Parts Fused 1 | . . . . . . . 1 . Data Loss (minor) 4 | . . . . . . 2 2 . Data Loss (major) 4 | . . . . . . . 4 . Alerts 2 | . . . . . . . 2 . Misdirections 1 | . . . . . . . 1 . Weapon Failures 3 | . . . . . . . 3 . Overload Shots . | . . . . . . . . . Overflow Damage 273 | . . . . . . . 254 19 Projectiles 107 | . . . . . . . 107 . Explosions 166 | . . . . . . . 147 19 Melee . | . . . . . . . . . Knockbacks . | . . . . . . . . . Impact . | . . . . . . . . . Kinetic . | . . . . . . . . . Secondary . | . . . . . . . . . Self-Inflicted Damage 416 | . . . . . . . 353 63 Shots 10 | . . . . . . . 9 1 Rammed 8 | . . . . . . . 8 . Targets Rammed 11 | . . . . . . . 9 2 Kicked 2 | . . . . . . . . 2 Crushed 1 | . . . . . . . 1 . Highest Temperature 484 | . 24 24 . . . 266 484 84 Average Temperature 129 | . 9 9 . . . 89 175 22 Received Heat Transfer 3024 | . 195 . 336 . . 275 1620 598 Effects 11 | . . . . . . . 11 . Shutdowns 2 | . . . . . . . 2 . Energy Bleed 2 | . . . . . . . 2 . Interference 3 | . . . . . . . 3 . Matter Decay 1 | . . . . . . . 1 . Short Circuit 2 | . . . . . . . 2 . Damage (minor) 1 | . . . . . . . 1 . Siege Activations 2 | . . . . . . . 2 . Total Turns 60 | . . . . . . . 60 . Longest Duration 37 | . . . . . . . 37 . Martial Activations . | . . . . . . . . . Shielding Activations . | . . . . . . . . . Robots Disrupted . | . . . . . . . . . Combat Hostiles . | . . . . . . . . . Robots Corrupted . | . . . . . . . . . Combat Hostiles . | . . . . . . . . . Parts Fried 1 | . . . . . . . 1 . Impact Corruptions . | . . . . . . . . . Robots Melted 3 | . . . . . . . 3 . Combat Hostiles 2 | . . . . . . . 2 . Parts Melted 5 | . . . 1 . . . 4 . Heat Transferred 2121 | . . . . . . . 1787 334 Parts Sabotaged . | . . . . . . . . . Parts Stolen . | . . . . . . . . . Parts Stripped . | . . . . . . . . . Power Chain Reactions . | . . . . . . . . . Alert | -11 -10 -10 -10 -8 -8 -6 -5 -4 ------- Run | Yrd Mat Min Sub Rec Scr Fac Fac Fac Maximum Alert Level 4 | . . . . . . . 4 2 Low Security (%) 73 | 100 100 100 . 100 . 100 55 . Level 1 5 | . . . . . . . 11 13 Level 2 12 | . . . . . . . 12 86 Level 3 5 | . . . . . . . 13 . Level 4 2 | . . . . . . . 6 . Level 5 . | . . . . . . . . . High Security . | . . . . . . . . . Max Security . | . . . . . . . . . Peak Influence 1259 | 10 71 5 . 30 . 66 1259 613 Initial 613 | . . 5 . . . . 12 613 Average 180 | 1 9 . . 2 . 14 330 499 Influence Increases 2776 | 15 166 5 150 30 . 280 1903 227 Destroy 0b10 Robot/C 1360 | . 80 . 120 . . 140 960 60 Destroy 0b10 Robot/NC 160 | 15 5 5 . . . 25 100 10 Destroy Leader 330 | . 20 . . . . 48 232 30 Trap Triggered on 0b10 10 | . . . . . . . 10 . Successful Hack 71 | . . . . . . 50 21 . Select Force Hacks 60 | . 30 . . 30 . . . . Disable Machine 150 | . 15 . . . . 15 90 30 Destroy Structure 455 | . 1 . . . . 2 370 82 Lose Combat Pursuer 180 | . 15 . 30 . . . 120 15 Influence Decreases 2310 | 15 152 19 150 30 . 254 676 1014 Entered New Map 663 | . . 9 . . . . 14 640 Time Decay 1176 | 15 91 10 150 30 . 224 442 214 Lost Part 410 | . . . . . . 30 220 160 Purge Threat 61 | . 61 . . . . . . . Squads Dispatched 26 | . 3 . . . . 6 14 3 Investigation 13 | . 2 . . . . 4 5 2 Extermination 6 | . . . . . . 2 3 1 Reinforcement 7 | . 1 . . . . . 6 . Assault . | . . . . . . . . . Garrison . | . . . . . . . . . Intercept . | . . . . . . . . . Searches Triggered . | . . . . . . . . . Construction Impeded 2 | . . . . . . . 2 . Haulers Reinforced . | . . . . . . . . . Active Scanning Responses . | . . . . . . . . . Cargo Convoy Interrupts 1 | . . . . . . . 1 . Stealth | -11 -10 -10 -10 -8 -8 -6 -5 -4 --------- Run | Yrd Mat Min Sub Rec Scr Fac Fac Fac Distress Signals 6 | . . . . . . . 5 1 Communications Jammed . | . . . . . . . . . Distress Signals . | . . . . . . . . . Times Spotted 125 | . 8 1 13 . . 14 75 14 Peak Tracking Total 18 | . 2 3 6 . . 3 18 9 Tactical Retreats 9 | . 1 . 1 . . . 6 1 Traps | -11 -10 -10 -10 -8 -8 -6 -5 -4 ------- Run | Yrd Mat Min Sub Rec Scr Fac Fac Fac Traps Triggered 8 | . 1 . 1 . . . 4 2 Indirectly . | . . . . . . . . . Trap Hack Attempts . | . . . . . . . . . Triggered . | . . . . . . . . . Disarmed . | . . . . . . . . . Reprogrammed . | . . . . . . . . . Reused 1 | . . . . . . . 1 . Traps Extracted . | . . . . . . . . . Installed 2 | . . . 1 . . . 1 . Triggered 1 | . . . . . . . 1 . Most Traps Carried 3 | . . . . . 3 3 3 2 Machines | -11 -10 -10 -10 -8 -8 -6 -5 -4 ---------- Run | Yrd Mat Min Sub Rec Scr Fac Fac Fac Machines Disabled 12 | . 1 . 2 . . 1 6 2 Max in Single Turn 2 | . 1 . 2 . . 1 2 1 Garrison Access 1 | . . . . . . 1 . . Machines Repaired . | . . . . . . . . . Machines Dismantled . | . . . . . . . . . Machines Sabotaged . | . . . . . . . . . Overloaded Fab Kills . | . . . . . . . . . Hacking | -11 -10 -10 -10 -8 -8 -6 -5 -4 --------- Run | Yrd Mat Min Sub Rec Scr Fac Fac Fac Machines Accessed 30 | . 3 . 3 3 1 8 9 3 Terminals 11 | . 2 . . 2 . 2 5 . Fabricators 3 | . . . . . . 2 . 1 Repair Stations 1 | . . . . . . 1 . . Recycling Units 9 | . 1 . . 1 . 2 3 2 Scanalyzers 1 | . . . . . . . 1 . Garrison Access 1 | . . . . . . 1 . . Total Hacks 81 | . 6 . 7 9 1 20 30 8 Successful 50 | . 5 . 7 3 1 14 15 5 Failed 30 | . 1 . . 6 . 6 14 3 Catastrophic 8 | . . . . . . 3 4 1 Database Lockouts 1 | . . . . . . . 1 . Manual 27 | . 1 . . 6 . 10 8 2 Terminals 30 | . 4 . . 5 . 6 15 . Fabricators 10 | . . . . . . 8 . 2 Repair Stations 1 | . . . . . . 1 . . Recycling Units 24 | . 2 . . 4 . 3 9 6 Scanalyzers 6 | . . . . . . . 6 . Garrison Access 2 | . . . . . . 2 . . Terminal Hacks 20 | . 3 . 7 . 1 4 5 . Record 5 | . . . 5 . . . . . Prototype ID Bank 2 | . . . . . . 1 1 . Open Door 1 | . . . 1 . . . . . Branch Access Points 1 | . . . . . . 1 . . Terminal Index 1 | . 1 . . . . . . . Fabricator Index 1 | . . . . . . . 1 . Recycling Unit Index 1 | . . . . . . . 1 . Unreport Threat 1 | . 1 . . . . . . . Locate Traps 1 | . . . . . . 1 . . Hauler Manifests 1 | . . . . . . . 1 . Registered Components 1 | . 1 . . . . . . . Zone Layout 2 | . . . . . . 1 1 . Proto ID Catalog 1 | . . . . . 1 . . . Release Object 1 | . . . 1 . . . . . Fabricator Hacks 4 | . . . . . . 4 . . Load Schematic 3 | . . . . . . 3 . . Build 1 | . . . . . . 1 . . Repair Station Hacks . | . . . . . . . . . Recycling Unit Hacks 9 | . 1 . . 1 . 1 3 3 Retrieve Matter 1 | . . . . . . . . 1 Retrieve Components 8 | . 1 . . 1 . 1 3 2 Scanalyzer 4 | . . . . . . . 4 . Retrieve Study 4 | . . . . . . . 4 . Garrison Access Hacks 1 | . . . . . . 1 . . Seal Access 1 | . . . . . . 1 . . Unauthorized Hacks 12 | . 1 . . 2 . 4 3 2 Terminals 2 | . . . . 1 . 1 . . Assimilate 1 | . . . . . . 1 . . Skim 1 | . . . . 1 . . . . Fabricators 1 | . . . . . . 1 . . Recompile 1 | . . . . . . 1 . . Repair Stations . | . . . . . . . . . Recycling Units 9 | . 1 . . 1 . 2 3 2 Tunnel 2 | . 1 . . 1 . . . . Fedlink 7 | . . . . . . 2 3 2 Scanalyzers . | . . . . . . . . . Garrison Access . | . . . . . . . . . Data Cores Recovered . | . . . . . . . . . Used . | . . . . . . . . . Hacking Detections 19 | . 1 . . 3 . 4 9 2 Full Trace Events 2 | . . . . . . 1 1 . Feedback Events . | . . . . . . . . . Feedback Blocked . | . . . . . . . . . Robot Schematics Acquired . | . . . . . . . . . Robots Built . | . . . . . . . . . Authchips . | . . . . . . . . . Time . | . . . . . . . . . Total Robot Build Rating . | . . . . . . . . . Part Schematics Acquired 36 | . . . . . 13 13 10 . Parts Built 1 | . . . . . . 1 . . Authchips 1 | . . . . . . 1 . . Time 62 | . . . . . . 62 . . Total Part Build Rating 7 | . . . . . . 7 . . Part Studies Acquired 4 | . . . . . . . 4 . Parts Repaired . | . . . . . . . . . Time . | . . . . . . . . . Parts Recycled . | . . . . . . . . . Recycled Matter . | . . . . . . . . . Retrieved Matter . | . . . . . . . . . Retrieved Components 37 | . 9 . . 1 . 2 24 1 Parts Scanalyzed . | . . . . . . . . . Part Schematics Acquired . | . . . . . . . . . Parts Damaged . | . . . . . . . . . Bothacking | -11 -10 -10 -10 -8 -8 -6 -5 -4 ------------ Run | Yrd Mat Min Sub Rec Scr Fac Fac Fac Used RIF Installer . | . . . . . . . . . Robots Hacked . | . . . . . . . . . Non-combat . | . . . . . . . . . Combat . | . . . . . . . . . Robot Hacks Applied . | . . . . . . . . . Relay Couplers Released . | . . . . . . . . . Fabnet Peak Effective % . | . . . . . . . . . Robots Rewired . | . . . . . . . . . Allies Hacked . | . . . . . . . . . Hacks Repelled . | . . . . . . . . . Allies | -11 -10 -10 -10 -8 -8 -6 -5 -4 -------- Run | Yrd Mat Min Sub Rec Scr Fac Fac Fac Total Allies 1 | . . . . . . 1 . . Largest Group 1 | . . . . . . 1 . . Highest-Rated Group 26 | . . . . . . 26 . . Highest-Rated Ally 26 | . . . . . . 26 . . Total Orders . | . . . . . . . . . Ally Attacks . | . . . . . . . . . Total Damage . | . . . . . . . . . Kills . | . . . . . . . . . Allies Corrupted . | . . . . . . . . . Allies Melted . | . . . . . . . . . Intel | -11 -10 -10 -10 -8 -8 -6 -5 -4 ------- Run | Yrd Mat Min Sub Rec Scr Fac Fac Fac Active Infowar (turns) 2038 | 12 276 . . . . . 1300 450 Optics 433 | . . . . . . . . 433 Sensors 559 | . . . . . . . 559 . Terrain 1016 | . . . . . . . 741 275 Seismic 288 | 12 276 . . . . . . . Robot Analysis Total . | . . . . . . . . . Derelict Logs Recovered 5 | . . . . . 5 . . . Drone Launches . | . . . . . . . . . Drone Recoveries . | . . . . . . . . . Exploration | -11 -10 -10 -10 -8 -8 -6 -5 -4 ------------- Run | Yrd Mat Min Sub Rec Scr Fac Fac Fac Turns Passed 11056 | 99 508 368 2822 429 3045 1255 2074 456 Spaces Moved 5008 | 60 219 135 891 241 1872 599 832 159 Core 53 | 25 . . 26 . . . . 2 Treads 2659 | 35 219 135 181 . 891 599 599 . Legs 389 | . . . . . . . 233 156 Wheels 1906 | . . . 684 241 981 . . . Hover . | . . . . . . . . . Flight 1 | . . . . . . . . 1 Fastest Speed 35 | 50 160 240 160 160 105 155 126 35 Average Speed 189 | 114 182 240 301 173 156 173 156 196 Slowest Speed 3650 | 160 240 240 3650 210 465 238 250 800 Overloaded Moves . | . . . . . . . . . Propulsion Burnouts . | . . . . . . . . . Robots Hopped . | . . . . . . . . . Potential Cave-ins . | . . . . . . . . . Cave-ins Triggered . | . . . . . . . . . Exploration Rate (%) 33 | 4 29 45 52 51 87 11 19 7 Regions Visited 8 Branch Regions 4 Pre-discovered Areas 6 | . 1 . 1 1 2 1 . . Known Exits Taken 1 | . . . . . . . 1 . Unknown Exits Taken 7 | 1 1 1 1 1 1 1 . . Scrap Searched 19 | . . . 9 . 10 . . . Spaces Dug 18 | . . . . . . . 14 4 Terrain Destroyed 290 | . . . . . . . 246 44 Melee . | . . . . . . . . . Projectile 26 | . . . . . . . 20 6 AOE 257 | . . . . . . . 219 38 Terrain Rammed . | . . . . . . . . . Walls Destroyed . | . . . . . . . . . Machines Disabled . | . . . . . . . . . Actions | -11 -10 -10 -10 -8 -8 -6 -5 -4 --------- Run | Yrd Mat Min Sub Rec Scr Fac Fac Fac Total 6041 | 83 282 170 968 255 1999 725 1288 271 Wait 275 | . 11 31 6 6 32 19 117 53 Move 5000 | 59 218 134 890 240 1871 598 831 159 Hop . | . . . . . . . . . Pick Up 168 | 13 10 . 28 5 46 16 41 9 Fast Attach 25 | . . . . . 2 3 20 . Attach 72 | 7 1 . 7 . 7 13 25 12 Detach 5 | . . . 1 . 2 1 1 . Swap 55 | . 4 . 2 . 7 11 31 . Drop 105 | . 12 . 4 4 32 12 35 6 Fire 323 | 4 26 5 29 . . 52 177 30 Melee . | . . . . . . . . . Ram . | . . . . . . . . . Kick 2 | . . . . . . . . 2 Crush 9 | . . . . . . . 9 . Escape Stasis . | . . . . . . . . . Rewire . | . . . . . . . . . Trap 2 | . . . 1 . . . 1 . Miscellaneous . | . . . . . . . . . Route ------- -11/Scrapyard -10/Materials -10/Mines (discovered 2 exits: [*Mat] / *Sub) -10/Subcaves (discovered 2 exits: [*Mat] / *Rec) -8/Recycling -8/Scraptown (discovered 2 exits: *Fac x2) -6/Factory (discovered 3 exits: *Fac / *Low x2) -5/Factory (discovered 3 exits: *Fac x2 / *Upp) -4/Factory (discovered 1 exit: [Ext]) History --------- Turn | Location | Event 11 | -11/Scrapyard | Discovered new exit (range 14) 100 | -11/Scrapyard | Entered Materials 318 | -10/Materials | Build established: Mutant 324 | -10/Materials | Discovered new exit (range 16) 608 | -10/Materials | Entered Mines 864 | -10/Mines | Discovered new exit (range 8) 966 | -10/Mines | Discovered new exit (range 4) 976 | -10/Mines | Entered Subcaves 1052 | -10/Subcaves | Learned location of Zion (-7) 1052 | -10/Subcaves | Met a Zionite searching for "candidates" 1058 | -10/Subcaves | Discovered new exit (range 11) 1204 | -10/Subcaves | Visited Clippyterm 1212 | -10/Subcaves | Learned Factory emergency access door positions 1212 | -10/Subcaves | Learned Factory garrison access intel 1314 | -10/Subcaves | Shifting Twisted Machinery released Sub. Monowheel 1351 | -10/Subcaves | Discovered new exit (range 11) 1746 | -10/Subcaves | Build established: Hauler-Mutant 2070 | -10/Subcaves | Found SUBCON Basin 2183 | -10/Subcaves | Disturbed a concealed Subdweller 2996 | -10/Subcaves | Core integrity fell below 50% 3025 | -10/Subcaves | Core integrity fell below 20% 3070 | -10/Subcaves | Lost 4 parts (1p2n1w) 3798 | -10/Subcaves | Entered Recycling 4155 | -8/Recycling | Scanned before Scraplab entrance 4184 | -8/Recycling | Entered Scraplab 4225 | -8/Recycling | Discovered new exit (range 2) 4227 | -8/Recycling | Entered Scraptown 4571 | -8/Scraptown | Scanned Subdweller tech in exchange for log data 4580 | -8/Scraptown | Learned location of 2 exits from Proximity Caves 4585 | -8/Scraptown | Learned Factory security intel 4590 | -8/Scraptown | Learned Research terminal intel 4594 | -8/Scraptown | Learned location of 1 exit from Research 4599 | -8/Scraptown | Learned location of Extension (-4) 4738 | -8/Scraptown | Discovered new exit (range 11) 4941 | -8/Scraptown | Build established: Mutant 5168 | -8/Scraptown | Visited Junk Repository 5234 | -8/Scraptown | Visited Fellowship of the Rings 5255 | -8/Scraptown | Visited Bundlers 5348 | -8/Scraptown | Visited The Evicted 5366 | -8/Scraptown | Visited Awakened 5434 | -8/Scraptown | Visited UFD Registry 5434 | -8/Scraptown | Registered with UFD as "Hardnuts" 5548 | -8/Scraptown | Guru changed UFD alias to "Technonuts" 5686 | -8/Scraptown | Visited Chapter 10 5707 | -8/Scraptown | Visited LU-1G1's Boring Crew 5733 | -8/Scraptown | Received an X-ray algorithm 5743 | -8/Scraptown | Visited Science Guys 5789 | -8/Scraptown | Visited Supply Room 5815 | -8/Scraptown | Visited Infowarlord's Domain 5850 | -8/Scraptown | Visited DA-N13 Charitable Foundation 5863 | -8/Scraptown | Found DCF Scrap (29 items) 5955 | -8/Scraptown | Visited Research Penetration Think Tank 6019 | -8/Scraptown | Visited Curators Association 6078 | -8/Scraptown | Visited Derelict Rescue Squad 6088 | -8/Scraptown | Found DRS Beacon 6444 | -8/Scraptown | Tech Extrapolator generated special schematic: Vmp. Humpback 6564 | -8/Scraptown | Visited Red Mages 6824 | -8/Scraptown | Tech Extrapolator generated special schematic: Deep Structural Scanner 6878 | -8/Scraptown | Found Exp. Terrain Scan Processor 7211 | -8/Scraptown | Met Optimus 7211 | -8/Scraptown | Accepted into 0bPrime 7270 | -8/Scraptown | Discovered new exit (range 3) 7272 | -8/Scraptown | Entered Factory 7272 | -6/Factory | Evolved 8 slots: Power x1, Propulsion x2, Utility x5 7275 | -6/Factory | Loaded intel: 4 garrison access locations 7344 | -6/Factory | Loaded intel: 8 recycling unit locations 7501 | -6/Factory | Identified exit to Lower Caves 7727 | -6/Factory | Learned location of Protoforge (-2) 7758 | -6/Factory | Tech Extrapolator generated special schematic: Machine Rigger 7787 | -6/Factory | Build established: Hacker-Mutant 7822 | -6/Factory | Tech Extrapolator generated special schematic: Energy Deflector 7916 | -6/Factory | P-60 Hacker assimilated allied Administrator 5a 8201 | -6/Factory | Discovered new exit (range 6) 8389 | -6/Factory | Fabricated Energy Deflector (x1) 8527 | -6/Factory | Entered another Factory area 8527 | -5/Factory | Evolved 2 slots: Propulsion x1, Utility x1 8528 | -5/Factory | Lost 3 parts (1n2u) 8543 | -5/Factory | Central database locked down 8697 | -5/Factory | Discovered new exit (range 16) 8830 | -5/Factory | Identified exit to Upper Caves 9112 | -5/Factory | Discovered new exit (range 6) 9156 | -5/Factory | Identified exit to Factory 9503 | -5/Factory | Loaded intel: 8 recycling unit locations 9704 | -5/Factory | Discovered exit to Factory (range 20) 9847 | -5/Factory | Cargo convoy interrupted 9989 | -5/Factory | Destroyed 17 combat bots 10019 | -5/Factory | Lost 11 parts (3p1n4u3w) 10086 | -5/Factory | Found PL-3XN's Ring of Power 10091 | -5/Factory | Found Prototype Launcher 10093 | -5/Factory | Identified Adv. Micro-nuke Launcher 10152 | -5/Factory | System corruption reached 10% 10304 | -5/Factory | Tech Extrapolator generated special schematic: Vmp. Brace Plating 10330 | -5/Factory | Spotted B-75 Beast 10488 | -5/Factory | Core integrity fell below 50% 10550 | -5/Factory | Lost 6 parts (1p3n2u) 10601 | -5/Factory | Entered another Factory area 10601 | -4/Factory | Evolved 2 slots: Propulsion x1, Utility x1 10790 | -4/Factory | Discovered new exit (range 17) 10867 | -4/Factory | Loaded intel: 8 recycling unit locations 11040 | -4/Factory | Core integrity fell below 50% 11054 | -4/Factory | Core integrity fell below 20% 11056 | -4/Factory | Spotted B-86 Titan 11057 | -4/Factory | Destroyed by G-67 Veteran with Plasma Rifle Last Messages --------------- 11046_ Flexi-carbon Leg destroyed. 11047_ Penetrated by Slug. 11048_ The unstable cave ceiling collapses. 11048_ K-01 Serf collects debris. 11048_ U-05 Engineer lays Concrete. 11048_ U-05 Engineer destroyed. 11048_ Destroyed Sml. Matter Pod. 11050_ The unstable cave ceiling collapses. 11050_ K-01 Serf crushed by falling debris. 11050_ Destroyed Field Laser. 11051_ Prc. Grenade Launcher destroyed. 11052_ Dropped Imp. Recalibrator. 11053_ The unstable cave ceiling collapses. 11053_ Dropped Weapon Cycler. 11053_ Dropped Matter Compressor. 11054_ Identified Exp. Matter Compressor. 11055_ Slug penetrates Earth. 11055_ Identified Cld. Impulse Thruster. 11055_ Penetrated by Slug. 11056_ Dropped Hcp. Storage Unit. Map ----- +----------------------------------------------------+ | ?????????????????????????????????????????????????? | | ?????????????????????????????????????????????????? | | ?????????????????????????????????????????????????? | | ?????????????????????????????????????????????????? | | ?????????????????????????????????????????????????? | | ?????????????????????????????????????????????????? | | ?????????????????????????????????#???????????????? | | ?????????????????????BB??????? ? #???????????????? | | ?????????????????#?##BB?????## #???????????????? | | ?????????????????# ????? +???????????????? | | ?????????????????# ????? R #???????????????? | | ?????????????????# !!!???? #???????????????? | | ?????????????????# !!!???? ]] #???????????????? | | ?????????????????# !! ??? ] #???????????????? | | ?????????????????# ??? #???????????????? | | ?????????????????# """???""" #???????????????? | | ?????????????????? ??? #???????????????? | | ??????????????????? h ?? k #### ? ????????? | | ???????????????????? ?? ####? +?????? | | ??????????????????###h #### #? ???? | | ??????????????????# #### ?? ??? | | ???????????????????# ## #### ######? | | ??????#########????# # * # ############?### | | ??????# # g g ###########?### | | ????????? ! =g!]%! " ############## | | ???????????????? # !%@!=| " ############### | | ???????????????? # =&!![ g g%############### | | ??????????????? + u || # # ############# | | ??????????? ## pp## ############### | | ??????? ## ### ####### # | | ??????? ## #### ####### """"""""" # | | ??????? ? ## ############ # | | ??????? ? ## ############ """"""""" # | | ???????? ## ## " # | | ??????? ? ## ## # """"""""" # | | ??????#?#############u## ## # # | | ????? ?######## T # ## # """"""""" # | | ????? ######### # ## """ ""# # | | ????? + # ## """ Y"# """"""""" # | | ????? ######### """" # + """ """# # | | ??? ######### """" # # # # | | ??? ?#?####### """" # ########+######+######## | | ???? ######### """" # | | ??# ? ######### """" # | | ??? ######## """" + | | ??? """"""""# # =* | | ??? ####### """" + = | | | ?? """""### """" #### ########## | | ?# ######## """" # ## | | ?? ######## """" # ## | +----------------------------------------------------+ Best States ------------- Heat Dissipation 97 Energy Generation 31 Energy Capacity 360 Matter Stores 300 Matter Capacity 300 Sight Range 22 Robot Scan Range 16 Terrain Scan Range 20 Terrain Scan Density 1010 Armor Coverage 450 Resistance: KI 30 Projectile Deflection 10 Phase Shifting 5 Evasion (%) 55 Target Analysis 6 Recoil Reduction 5 Offensive Hacking 20 Defensive Hacking 26 Authchip Count 1 Item Schematics ----------------- Spk. Medium Treads | -8/Scraptown | Extrapolated Lgt. Humpback | -8/Scraptown | Extrapolated Vmp. Humpback | -8/Scraptown | Extrapolated 0b10 Decoder Chip [Looter] | -8/Scraptown | Extrapolated Spk. Treads | -8/Scraptown | Extrapolated 0b10 Decoder Chip [Scout] | -8/Scraptown | Extrapolated Mak. Terrain Scan Processor | -8/Scraptown | Extrapolated Deep Structural Scanner | -8/Scraptown | Extrapolated Tactical Coordination Suite | -8/Scraptown | Extrapolated Mak. Leg | -8/Scraptown | Extrapolated Mak. Light Armor Plating | -8/Scraptown | Extrapolated Mak. Medium Armor Plating | -8/Scraptown | Extrapolated Mak. Kinetic Plating | -8/Scraptown | Extrapolated Mak. Coolant Network | -6/Factory | Extrapolated Mak. Power Source | -6/Factory | Extrapolated Mak. Targeting Computer | -6/Factory | Extrapolated 0b10 Decoder Chip [Generic] | -6/Factory | Extrapolated 0b10 Decoder Chip [Skirmisher] | -6/Factory | Extrapolated Mak. Ablative Armor | -6/Factory | Extrapolated Mak. System Shield | -6/Factory | Extrapolated Machine Rigger | -6/Factory | Extrapolated Energy Deflector | -6/Factory | Extrapolated Mak. Laser | -6/Factory | Extrapolated Multitool | -6/Factory | Extrapolated Mak. Terrain Scanner | -6/Factory | Extrapolated Mak. System Restoration Module | -6/Factory | Extrapolated Mak. Trap Scanner | -5/Factory | Extrapolated Mapping Drone Bay | -5/Factory | Extrapolated Multireflex Exoskeleton | -5/Factory | Extrapolated Mak. Flight Unit | -5/Factory | Extrapolated Mak. Core Shielding | -5/Factory | Extrapolated Mak. Propulsion Shielding | -5/Factory | Extrapolated Mak. Hacking Suite | -5/Factory | Extrapolated Vmp. Brace Plating | -5/Factory | Extrapolated Mak. Thermal Plating | -5/Factory | Extrapolated Mak. Heavy Armor Plating | -5/Factory | Extrapolated Robot Schematics ------------------ None Fabricated ------------ Energy Deflector | x1 | -6/Factory | Authchip Repaired ---------- Nothing Studied --------- Hyp. Gauss Rifle | -5/Factory | Hacked Hvy. Machine Gun | -5/Factory | Hacked Proton Cannon | -5/Factory | Hacked Hvy. Plasma Cannon | -5/Factory | Hacked Alien Tech Used ----------------- None Achievements -------------- None Challenges ------------ None Game ------ Seed SeismicReinforcedMaul Manual? 0 Play Time 01:11:18 Cumulative 682.0 hours Start 2026.02.07 @ 21:27:01 End 2026.02.08 @ 06:53:59 Sessions 9 Manual Loads 0 Difficulty Rogue Special Mode None Game No. 848 Rogue 848 Adventurer 0 Explorer 0 Win Type - Total 24 Types 11/1/3/3/2/0/2/2/0/0 Lore% 96 Gallery% 93 Achievement% 82 Wizard Run 0 Options --------- Layout 2 ASCII 0 Keyboard 0 Movement Mouse Keybinds 0 Fullscreen 2 Font 24/Tamsyn Map View 50x44 Zoom Use 0% Tactical HUD 1 Map Filters NONE Filters NONE Steam 1 RUN: f914c33a-7819-48eb-a0a6-66ea28efddac